[Event "45th FIDE Olympiad 2024"]
[Site "Budapest"]
[Date "2024.09.18"]
[Round "7.14"]
[White "Ivanchuk, Vasyl"]
[Black "Yakubboev, Nodirbek"]
[Result "1/2-1/2"]
[ECO "C54"]
[WhiteElo "2635"]
[BlackElo "2666"]
[Annotator "TA"]
[PlyCount "141"]
[EventDate "2024.09.05"]
[EventType "team-tourn"]
[EventCountry "HUN"]
[SourceTitle "playchess.com"]
[Source "ChessBase"]
[SourceQuality "1"]
[WhiteTeam "Ukraine"]
[BlackTeam "Uzbekistan"]
[WhiteTeamCountry "UKR"]
[BlackTeamCountry "UZB"]
[TimeControl "40/5400+30:1800+30"]

{[%evp 65,141,-113,-120,-133,-101,-103,-104,-128,-127,-174,-133,-132,-125,-134,-111,-141,-127,-120,-110,-96,0,-50,-49,-95,-89,-88,-96,-95,-75,-88,-95,-95,-95,-112,-81,-91,-90,-91,-84,-77,-83,-73,0,-85,-77,-77,-16,-9,-8,-38,-19,-47,-62,-50,-37,-56,-17,-80,-82,-80,-82,-77,-77,-98,-39,-39,-8,-8,-14,-115,-29,-22,0,-124,-16,-12,0,-120]} 1. e4 {[%emt 0:00:07]} e5 {[%emt 0:00:24]} 2. Nf3 {[%emt 0:00:04]} Nc6 {[%emt 0:00:07]} 3. Bc4 {[%emt 0:00:04]} Bc5 {[%emt 0:01:02]} 4. c3 {[%emt 0:00:08]} Nf6 {[%emt 0:00:06]} 5. d3 {[%emt 0:00:04]} a5 {[%emt 0:02:51]} 6. Nbd2 {[%emt 0:02:04] C54: Giuoco Piano: 4 c3 Nf6, main lines with 5 d4 and 5 d3.} O-O {[%emt 0:02:28]} 7. O-O {[%emt 0:00:05]} d6 {[%emt 0:00:52]} 8. h3 {[%emt 0:01:28]} h6 {[%emt 0:04:14]} 9. Re1 {[%emt 0:01:10]} Be6 {[%emt 0:00:06]} 10. Bb5 {[%emt 0:06:02]} Nd7 {[%emt 0:00:10]} 11. Nf1 {[%emt 0:02:12]} d5 {[%emt 0:00:25]} 12. Ng3 {[%emt 0:08:21]} Re8 {[%emt 0:05:39]} 13. Be3 {[%emt 0:01:21]} Bf8 {[%emt 0:05:10]} 14. Qc2 $146 {[%emt 0:09:51]} ({Predecessor:} 14. Qa4 Ne7 15. d4 c6 16. Bf1 dxe4 17. Nxe5 f5 18. Bc4 Nd5 19. Bxd5 cxd5 20. Ng6 {1-0 Vaibhav,S (2588)-Sargsyan,S (2631) AI Cup Play In rapid 2023 (9)}) 14... dxe4 {[%emt 0:22:01]} 15. dxe4 {[%emt 0:00:48]} Na7 {[%emt 0:00:05]} 16. Ba4 {[%emt 0:08:29]} c5 {[%emt 0:01:22]} 17. c4 {[%emt 0:24:10]} Qc7 {[%emt 0:01:05]} 18. b3 {[%emt 0:01:44]} Red8 {[%emt 0:10:55]} 19. Ne2 {[%emt 0:08:34]} Nb6 {[%emt 0:00:08]} 20. Nc3 {[%emt 0:00:02]} Nxa4 {[%emt 0:00:08]} 21. Nxa4 {[%emt 0:00:04]} Nc6 {[%emt 0:00:24]} 22. Nxc5 {[%emt 0:07:07]} Bxh3 {[%emt 0:02:04]} 23. gxh3 {[%emt 0:00:31]} Nb4 {[%emt 0:00:06]} 24. Qc3 {[%emt 0:00:02]} Bxc5 {[%emt 0:00:06]} 25. Bxc5 {[%emt 0:00:59]} Qxc5 {[%emt 0:00:51]} 26. Nxe5 {[%emt 0:00:01]} f6 {[%emt 0:03:31]} 27. a3 {[%emt 0:00:18]} fxe5 {[%emt 0:00:27]} 28. axb4 {[%emt 0:00:05]} axb4 {[%emt 0:00:03]} 29. Rxa8 {[%emt 0:03:06]} Rxa8 {[%emt 0:01:23]} 30. Qd2 {[%emt 0:03:29]} Qe7 {[%emt 0:05:38]} 31. Rd1 {[%emt 0:00:33]} Rf8 {[%emt 0:01:10]} 32. Qe3 {[%emt 0:00:40]} Rf4 {[%emt 0:00:29]} 33. f3 {[%emt 0:03:06]} Qe6 {[%emt 0:06:04]} 34. Kg2 {[%emt 0:00:21]} Rh4 {[%emt 0:03:26]} 35. Rh1 {[%emt 0:00:02]} Kh7 {[%emt 0:01:57]} 36. Qf2 {[%emt 0:00:38]} Rf4 $1 {[%emt 0:03:15]} 37. Rd1 {[%emt 0:01:30]} (37. Rb1 $17) 37... Rf6 {[%emt 0:01:16]} 38. Qe3 {[%emt 0:03:06]} Qe7 {[%emt 0:03:51]} 39. Kh2 {[%emt 0:01:01]} Qf7 {[%emt 0:03:06]} 40. Rd3 {[%emt 0:00:29]} Qh5 {[%emt 0:01:00]} 41. Qf2 {[%emt 0:30:56]} Qg5 {[%emt 0:40:41]} 42. Qe3 {[%emt 0:00:31]} Qh5 {[%emt 0:00:00]} (42... Qh4 $17 {And now ...Rg6 would win.} 43. Rd1 Ra6) 43. Qf2 $1 $15 {[%emt 0:00:00]} b6 {[%emt 0:00:00]} 44. Qe3 {[%emt 0:00:00]} (44. h4 $15 {deserves consideration.}) 44... Qh4 $17 {[%emt 0:00:00]} 45. Rd2 {[%emt 0:00:00]} Rg6 {[%emt 0:00:00]} 46. Rg2 {[%emt 0:00:00]} Rd6 {[%emt 0:00:00]} 47. Rd2 {[%emt 0:00:00]} Rf6 {[%emt 0:00:00]} 48. Rg2 {[%emt 0:00:00]} Qh5 {[%emt 0:00:00]} 49. Kg3 {[%emt 0:00:00]} Qg6+ {[%emt 0:00:00]} 50. Kh2 {[%emt 0:00:00]} Qf7 {[%emt 0:00:00]} 51. Rf2 {[%emt 0:00:00]} Qf8 {[%emt 0:01:44]} 52. Kg2 {[%emt 0:00:00]} Rg6+ {[%emt 0:00:07]} 53. Kh2 {[%emt 0:00:00]} Rf6 {[%emt 0:00:34]} 54. Kg2 $1 {[%emt 0:00:00]} Qe7 {[%emt 0:00:30]} 55. Rd2 {[%emt 0:00:00]} h5 {[%emt 0:02:39]} ({Black should play} 55... Qf7 $17) 56. Kh2 {[%emt 0:00:00]} Qf7 {[%emt 0:00:59]} 57. Rf2 {[%emt 0:00:00]} Rf4 {[%emt 0:01:01]} 58. Kg2 {[%emt 0:00:00]} Qg6+ {[%emt 0:00:06]} 59. Kh2 {[%emt 0:00:00]} Qf6 {[%emt 0:00:19]} 60. Kg2 {[%emt 0:00:00]} Qe6 {[%emt 0:00:17]} 61. Kg3 {[%emt 0:00:00]} (61. Rf1 $11) 61... h4+ $17 {[%emt 0:01:51]} 62. Kh2 {[%emt 0:00:00]} Qg6 {[%emt 0:00:11]} 63. Rg2 {[%emt 0:00:00]} Qf6 {[%emt 0:00:09]} 64. Rf2 {[%emt 0:00:00]} Qg5 {[%emt 0:01:22]} (64... Qh6 $1 $17 65. c5 bxc5 66. Qxc5 Qg6) 65. Rg2 $1 $15 {[%emt 0:00:00]} Qd8 {[%emt 0:00:29]} 66. Rg1 {[%emt 0:00:00]} Qf6 {[%emt 0:00:23]} 67. Rf1 {[%emt 0:00:00] [#]} (67. Kg2 $1 $11) 67... Qd6 {[%emt 0:00:22]} (67... Qh6 $1 $17 68. c5 bxc5 69. Qxc5 Qg6) 68. Rg1 $11 {[%emt 0:00:00]} Qf6 {[%emt 0:00:14]} (68... Qd8 $11) 69. Rf1 $17 {[%emt 0:00:00] [#]} Qg6 {[%emt 0:00:48]} (69... Qh6 $1 $17 70. c5 Rf6 71. Qxh6+ Kxh6 72. cxb6 Rxb6) 70. Rg1 $11 {[%emt 0:00:00]} Qf6 {[%emt 0:00:22]} (70... Qf7 $11 71. Qf2 Qf6 (71... Rxf3 72. Qxh4+ Kg8 73. Qd8+ Qf8 74. Qd5+ Kh8 75. Qxe5 $11)) 71. Rf1 {[%emt 0:01:00]} 1/2-1/2

[Event "45th FIDE Olympiad 2024"]
[Site "Budapest"]
[Date "2024.09.18"]
[Round "7.14"]
[White "Drayton, Anthony"]
[Black "De Gondo, Simplice Armel"]
[Result "1-0"]
[WhiteElo "1964"]
[BlackElo "2045"]
[PlyCount "97"]
[EventDate "2024.09.05"]
[EventType "team-tourn"]
[EventCountry "HUN"]
[WhiteTeam "Guyana"]
[BlackTeam "Cote d/^Ivoire"]
[WhiteTeamCountry "GUY"]
[TimeControl "40/5400+30:1800+30"]

1. d4 c5 2. d5 e5 3. dxe6 fxe6 4. e4 d5 5. Qh5+ g6 6. Qe5 Qf6 7. Qc7 Nc6 8. Bb5 Nge7 9. e5 Qf5 10. Nc3 a6 11. Ba4 d4 12. g4 Qxg4 13. f3 Qh4+ 14. Kf1 dxc3 15. Bxc6+ Nxc6 16. bxc3 Bg7 17. Qxg7 Rf8 18. Bh6 Qe7 19. Qxf8+ Qxf8 20. Bxf8 Kxf8 21. f4 Ne7 22. Ne2 Bd7 23. Kf2 Bc6 24. Rhd1 Bd5 25. a4 Rc8 26. Rab1 Rc7 27. Ng3 Bc6 28. Rd8+ Kg7 29. a5 Nd5 30. Ne4 Nxf4 31. Nxc5 Bb5 32. c4 Bc6 33. Rd6 Kf7 34. Ke3 g5 35. Rb6 Bd5 36. Rd7+ Rxd7 37. Nxd7 Bc6 38. Nc5 Ng6 39. Kd4 Nh4 40. Nxb7 Nf3+ 41. Ke3 Nxe5 42. Nd8+ Kf6 43. Nxc6 Nxc4+ 44. Kd4 Na3 45. Kc3 g4 46. Nd4 Kf7 47. Rb3 e5 48. Rxa3 exd4+ 49. Kxd4 1-0

[Event "45th FIDE Olympiad 2024"]
[Site "Budapest"]
[Date "2024.09.18"]
[Round "7.15"]
[White "Sindarov, Javokhir"]
[Black "Ponomariov, Ruslan"]
[Result "1-0"]
[ECO "B11"]
[WhiteElo "2677"]
[BlackElo "2654"]
[Annotator "TA"]
[PlyCount "99"]
[EventDate "2024.09.05"]
[EventType "team-tourn"]
[EventCountry "HUN"]
[SourceTitle "playchess.com"]
[Source "ChessBase"]
[SourceQuality "1"]
[WhiteTeam "Uzbekistan"]
[BlackTeam "Ukraine"]
[WhiteTeamCountry "UZB"]
[BlackTeamCountry "UKR"]
[TimeControl "40/5400+30:1800+30"]

{[%evp 10,99,15,14,18,4,14,14,12,11,17,5,4,8,11,0,0,0,18,11,29,5,10,0,27,29,31,35,22,19,27,40,36,31,74,32,91,85,89,87,91,91,104,97,102,102,108,115,112,104,105,105,97,96,97,0,100,0,95,96,107,100,118,116,123,111,135,122,162,166,161,183,175,173,214,215,219,215,364,344,331,338,1208,338,6183,6102,6215,6179,6123,6123,29973,29964]} 1. e4 {[%emt 0:00:06]} c6 {[%emt 0:00:10]} 2. Nf3 {[%emt 0:00:18]} d5 {[%emt 0:00:20]} 3. Nc3 {[%emt 0:00:19]} Bg4 {[%emt 0:00:23]} 4. h3 {[%emt 0:00:09]} Bxf3 {[%emt 0:00:10]} 5. Qxf3 {[%emt 0:00:05]} e6 {[%emt 0:00:23]} 6. Be2 {[%emt 0:00:16]} Bc5 {[%emt 0:01:55][%cal Bf8c5,Bc5d4,Bd4e5][%mdl 32]} 7. Qg3 {[%emt 0:07:07]} Bd4 {[%emt 0:01:57]} 8. exd5 {[%emt 0:00:41]} exd5 {[%emt 0:00:21] The position is equal.} 9. O-O {[%emt 0:11:44]} Nd7 {[%emt 0:01:24][%cal Bb8d7,Bd7c5,Bc5e6][%mdl 32]} 10. Bd1 {[%emt 0:28:59]} Ne7 {[%emt 0:00:51]} 11. Ne2 {[%emt 0:01:06]} Be5 {[%emt 0:00:56]} 12. Qf3 {[%emt 0:00:07]} d4 {[%emt 0:02:56]} 13. c3 {[%emt 0:00:59]} Nc5 {[%emt 0:00:27]} 14. Re1 {[%emt 0:02:29]} Qd6 {[%emt 0:12:04]} 15. d3 {[%emt 0:09:04]} (15. cxd4 {feels hotter.} Bxd4 16. Nxd4 Qxd4 17. d3) 15... Ne6 {[%emt 0:16:14]} 16. cxd4 {[%emt 0:00:33]} Bxd4 {[%emt 0:07:48]} 17. Nxd4 {[%emt 0:01:47]} Qxd4 {[%emt 0:02:11]} 18. Bb3 {[%emt 0:01:27]} O-O {[%emt 0:01:46]} 19. Re4 {[%emt 0:03:36]} Qd7 {[%emt 0:02:43]} 20. Bxe6 {[%emt 0:00:23]} fxe6 {[%emt 0:00:06]} 21. Qe2 {[%emt 0:00:30]} Nd5 {[%emt 0:11:27]} 22. Bd2 {[%emt 0:02:54]} Rad8 {[%emt 0:12:42]} (22... Rf6 $14) 23. Rxe6 $16 {[%emt 0:05:25]} Rfe8 {[%emt 0:00:36]} 24. Rxe8+ {[%emt 0:01:31]} Rxe8 {[%emt 0:00:06]} 25. Qf3 {[%emt 0:00:08]} Qc7 {[%emt 0:08:25]} 26. Re1 {[%emt 0:02:44]} Rxe1+ {[%emt 0:00:43]} 27. Bxe1 {[%emt 0:00:07][%mdl 4096] Endgame. KQB-KQN} Qf4 {[%emt 0:00:23]} 28. Qe2 {[%emt 0:01:35]} h6 {[%emt 0:01:26]} 29. Bd2 {[%emt 0:02:44]} Qf6 {[%emt 0:01:47]} 30. Qe8+ {[%emt 0:03:21]} Kh7 {[%emt 0:00:09]} 31. Qe4+ {[%emt 0:00:17]} Kg8 {[%emt 0:00:11]} 32. Qe8+ {[%emt 0:00:37]} Kh7 {[%emt 0:00:05]} 33. Qe4+ {[%emt 0:02:22]} Kg8 {[%emt 0:00:19]} 34. Bc1 {[%emt 0:00:41] White stays focused until the end.} Kf7 {[%emt 0:02:06]} 35. Kf1 {[%emt 0:00:45]} a6 {[%emt 0:01:51]} 36. Ke2 {[%emt 0:00:41]} Qd6 {[%emt 0:06:37]} 37. Be3 {[%emt 0:02:22]} Nf6 {[%emt 0:00:41]} 38. Qf4 {[%emt 0:01:12]} Qxf4 {[%emt 0:02:03]} 39. Bxf4 {[%emt 0:00:16] KB-KN} Ke6 {[%emt 0:00:08]} 40. Bd2 {[%emt 0:00:20]} Nd5 {[%emt 0:01:31]} 41. g4 {[%emt 0:30:32]} Kf7 {[%emt 0:12:21]} 42. h4 {[%emt 0:00:00]} Nf6 {[%emt 0:00:30]} 43. Kf3 {[%emt 0:00:00]} h5 {[%emt 0:00:27] [#]} (43... Nd7 $142 44. Bc3 g6) 44. gxh5 $1 $18 {[%emt 0:00:00]} Nxh5 {[%emt 0:00:05]} 45. Bc3 {[%emt 0:00:00]} g6 $2 {[%emt 0:14:15]} (45... a5 46. Bxa5 Nf6) 46. Kg4 $2 {[%emt 0:00:00]} (46. b4 Kf8 47. Kg4) 46... Ke6 $2 {[%emt 0:00:29]} (46... a5 47. Bxa5 Nf6+ 48. Kf4 Ke6) 47. f4 {[%emt 0:00:00]} Nf6+ {[%emt 0:00:56]} 48. Bxf6 {[%emt 0:00:00]} Kxf6 {[%emt 0:00:04]} 49. b4 {[%emt 0:00:00]} b6 {[%emt 0:00:57]} 50. d4 {[%emt 0:00:00] Weighted Error Value: White=0.25 (precise) /Black=0.23 (precise) .  Mistake:       	White=1     	Black=4      Inaccurate:     	White=1     	Black=3      OK:         	White=22    	Black=10     Best:        	---       	Black=3      Strong:       	White=1     	---} 1-0

[Event "45th FIDE Olympiad 2024"]
[Site "Budapest"]
[Date "2024.09.18"]
[Round "7.15"]
[White "Manan, Yoboue Hermann"]
[Black "Nathoo, Loris"]
[Result "0-1"]
[WhiteElo "2030"]
[BlackElo "1788"]
[PlyCount "86"]
[EventDate "2024.09.05"]
[EventType "team-tourn"]
[EventCountry "HUN"]
[WhiteTeam "Cote d/^Ivoire"]
[BlackTeam "Guyana"]
[BlackTeamCountry "GUY"]
[TimeControl "40/5400+30:1800+30"]

1. e4 c5 2. Nf3 d6 3. d4 cxd4 4. Qxd4 Nc6 5. Qe3 g6 6. Nc3 Bg7 7. h3 Nf6 8. Bc4 Be6 9. Bxe6 fxe6 10. O-O e5 11. Rd1 O-O 12. Qd3 h6 13. a3 Rc8 14. Nd5 Kh7 15. Be3 Qe8 16. b4 Nxd5 17. Qxd5 g5 18. c4 Qg6 19. Rac1 Rxf3 20. gxf3 Rf8 21. b5 Nd4 22. Bxd4 exd4 23. Rd3 Be5 24. Qxb7 Qf6 25. Kg2 h5 26. Rh1 Bf4 27. Qd5 e5 28. Rf1 Kg7 29. Qb7+ Rf7 30. Qc6 g4 31. fxg4 Be3 32. f4 exf4 33. Rf3 hxg4 34. hxg4 Qh4 35. Qc8 Qe1 36. Rdxe3 dxe3 37. Rh3 Qf2+ 38. Kh1 Qf1+ 39. Kh2 Qxh3+ 40. Kxh3 e2 41. Qd8 e1=Q 42. Qg5+ Kh8 43. Qd8+ Kh7 {0-} 0-1

[Event "45th FIDE Olympiad 2024"]
[Site "Budapest"]
[Date "2024.09.18"]
[Round "7.16"]
[White "Korobov, Anton"]
[Black "Vokhidov, Shamsiddin"]
[Result "1/2-1/2"]
[ECO "C54"]
[WhiteElo "2650"]
[BlackElo "2650"]
[Annotator "TA"]
[PlyCount "72"]
[EventDate "2024.09.05"]
[EventType "team-tourn"]
[EventCountry "HUN"]
[SourceTitle "playchess.com"]
[Source "ChessBase"]
[SourceQuality "1"]
[WhiteTeam "Ukraine"]
[BlackTeam "Uzbekistan"]
[WhiteTeamCountry "UKR"]
[BlackTeamCountry "UZB"]
[TimeControl "40/5400+30:1800+30"]

{[%evp 13,72,47,45,16,24,18,13,12,19,27,31,18,7,-9,-23,-21,0,-31,-22,-66,-52,-55,-58,-66,-38,-40,-36,-30,-31,-28,-29,-19,-19,-16,0,0,0,0,0,0,0,-10,-4,-11,0,0,0,0,0,0,0,0,0,0,0,0,0,0,0,0,0]} 1. e4 {[%emt 0:00:03]} e5 {[%emt 0:00:16]} 2. Nf3 {[%emt 0:00:06]} Nc6 {[%emt 0:00:03]} 3. Bc4 {[%emt 0:00:09]} Bc5 {[%emt 0:00:05]} 4. O-O {[%emt 0:00:17]} Nf6 {[%emt 0:00:03][%cal Bg8f6,Bf6d5,Bd5b6][%mdl 32]} 5. d3 {[%emt 0:00:05]} O-O {[%emt 0:00:05]} 6. c3 {[%emt 0:00:07]} d5 {[%emt 0:01:07]} 7. exd5 {[%emt 0:00:07]} Nxd5 {[%emt 0:00:02]} 8. a4 {[%emt 0:00:17]} a5 {[%emt 0:00:03]} 9. Nbd2 {[%emt 0:00:58]} Nb6 {[%emt 0:00:06]} 10. Bb5 {[%emt 0:00:20]} Bd6 {[%emt 0:00:04]} 11. Re1 {[%emt 0:02:44]} Bg4 {[%emt 0:00:42]} 12. h3 {[%emt 0:12:59]} Bh5 {[%emt 0:00:08]} 13. Qc2 {[%emt 0:10:25]} f6 {[%emt 0:13:52]} 14. d4 {[%emt 0:06:59]} Bg6 {[%emt 0:05:58]} 15. Qb3+ {[%emt 0:08:02]} Bf7 {[%emt 0:00:25]} 16. Qd1 {[%emt 0:00:33]} exd4 {[%emt 0:00:59]} 17. Bxc6 {[%emt 0:04:43]} bxc6 {[%emt 0:04:10]} 18. Nxd4 {[%emt 0:01:10]} Qd7 {[%emt 0:03:25]} 19. Ne4 {[%emt 0:01:41]} Rfe8 {[%emt 0:04:26]} 20. Nxd6 {[%emt 0:02:42]} Qxd6 {[%emt 0:10:00]} 21. Be3 {[%emt 0:08:04]} Nc4 {[%emt 0:02:54]} 22. Qc1 {[%emt 0:08:28]} c5 {[%emt 0:09:04] The position is equal.} 23. Nb5 {[%emt 0:02:42]} Qc6 {[%emt 0:00:43]} 24. Bf4 {[%emt 0:07:30]} Rxe1+ {[%emt 0:07:17]} 25. Qxe1 {[%emt 0:00:18]} Nxb2 {[%emt 0:01:55]} 26. Qe2 {[%emt 0:02:01]} Nc4 {[%emt 0:00:16]} 27. Nxc7 {[%emt 0:00:07]} Rd8 {[%emt 0:01:37]} 28. Rd1 {[%emt 0:04:31]} Rxd1+ {[%emt 0:03:59]} 29. Qxd1 {[%emt 0:00:02] [#] aiming for Qd8+.} g5 {[%emt 0:00:26]} 30. Bg3 {[%emt 0:00:26]} Kg7 {[%emt 0:00:09]} 31. h4 {[%emt 0:02:44]} h6 {[%emt 0:02:38]} 32. Nb5 {[%emt 0:03:12]} Qd5 {[%emt 0:02:11]} 33. Qxd5 {[%emt 0:01:28]} Bxd5 {[%emt 0:00:06]} 34. hxg5 {[%emt 0:00:04]} hxg5 {[%emt 0:00:04]} 35. Bc7 {[%emt 0:00:51]} Bc6 {[%emt 0:00:44] [#] ...Bxb5 is the strong threat.} 36. Nd6 {[%emt 0:00:24]} Nxd6 {[%emt 0:00:25] Weighted Error Value: White=0.06 (flawless) /Black=0.04 (flawless) .  Inaccurate:     	White=2     	Black=1      OK:         	White=19    	Black=13     Best:        	---       	Black=2} 1/2-1/2

[Event "45th FIDE Olympiad 2024"]
[Site "Budapest"]
[Date "2024.09.18"]
[Round "7.16"]
[White "Pitamber, Sachin Dhilan"]
[Black "Assemien, Yoann Philippe"]
[Result "1-0"]
[WhiteElo "1715"]
[BlackElo "1801"]
[PlyCount "73"]
[EventDate "2024.09.05"]
[EventType "team-tourn"]
[EventCountry "HUN"]
[WhiteTeam "Guyana"]
[BlackTeam "Cote d/^Ivoire"]
[WhiteTeamCountry "GUY"]
[TimeControl "40/5400+30:1800+30"]

1. e4 e5 2. Nf3 Nc6 3. Bb5 Nf6 4. O-O Nxe4 5. Re1 Nd6 6. Nxe5 Be7 7. Nxc6 dxc6 8. Bf1 O-O 9. d4 Bf5 10. Nd2 Qd7 11. Nf3 Bf6 12. Ne5 Bxe5 13. dxe5 Nc8 14. Qxd7 Bxd7 15. Bg5 h6 16. Bh4 g5 17. Bg3 Ne7 18. Rad1 Be6 19. Bd3 Rad8 20. f4 Rd7 21. h4 g4 22. h5 c5 23. Bh4 Rfd8 24. Bxe7 Rxe7 25. Bh7+ Kxh7 26. Rxd8 a6 27. Red1 Kg7 28. Rb8 b6 29. Rdd8 f6 30. f5 Bxf5 31. Rg8+ Kf7 32. Rbf8+ Ke6 33. exf6 Rd7 34. Rg7 Rd1+ 35. Kh2 Ke5 36. f7 Kf4 37. Rfg8 1-0

[Event "45th FIDE Olympiad 2024"]
[Site "Budapest"]
[Date "2024.09.18"]
[Round "7.17"]
[White "Predke, Alexandr"]
[Black "Giri, Anish"]
[Result "1/2-1/2"]
[ECO "C18"]
[WhiteElo "2671"]
[BlackElo "2724"]
[Annotator "TA"]
[PlyCount "113"]
[EventDate "2024.09.05"]
[EventType "team-tourn"]
[EventCountry "HUN"]
[SourceTitle "playchess.com"]
[Source "ChessBase"]
[SourceQuality "1"]
[WhiteTeam "Serbia"]
[BlackTeam "Netherlands"]
[WhiteTeamCountry "SRB"]
[BlackTeamCountry "NED"]
[TimeControl "40/5400+30:1800+30"]

{[%evp 17,113,43,27,0,0,0,0,0,20,32,35,20,26,0,8,25,7,0,-6,0,0,0,21,12,14,13,72,12,78,67,67,66,65,56,60,68,56,60,50,14,18,25,29,20,18,14,20,8,11,0,8,0,0,0,0,0,0,0,0,0,80,80,80,0,0,0,0,0,0,0,0,0,0,0,0,0,0,0,0,0,0,0,0,0,0,0,0,0,0,0,0,0,0,0,0,0,0,0]} 1. e4 {[%emt 0:00:38]} e6 {[%emt 0:00:26]} 2. d4 {[%emt 0:00:06]} d5 {[%emt 0:00:04]} 3. Nc3 {[%emt 0:00:05]} Bb4 {[%emt 0:00:18]} 4. e5 {[%emt 0:00:30]} c5 {[%emt 0:00:05]} 5. Qg4 {[%emt 0:00:11]} Ne7 {[%emt 0:03:41]} 6. a3 {[%emt 0:00:28]} Bxc3+ {[%emt 0:00:43]} 7. bxc3 {[%emt 0:00:05]} Qc7 {[%emt 0:00:16]} 8. Qxg7 {[%emt 0:08:25]} Rg8 {[%emt 0:00:21]} 9. Qxh7 {[%emt 0:00:06]} cxd4 {[%emt 0:00:05]} 10. Qd3 {[%emt 0:00:06]} Qxe5+ {[%emt 0:00:40]} 11. Ne2 {[%emt 0:00:07][%cal Bg1e2,Be2c3,Bc3b5][%mdl 32]} dxc3 {[%emt 0:00:03]} 12. Qxc3 {[%emt 0:00:56]} Qxc3+ {[%emt 0:00:05]} 13. Nxc3 {[%emt 0:00:03]} Nbc6 {[%emt 0:00:24]} 14. Nb5 {[%emt 0:08:54] Inhibits Nd4.} Kd7 {[%emt 0:01:26] Dodges Nc7} 15. Bb2 {[%emt 0:01:27]} e5 {[%emt 0:05:14]} 16. O-O-O {[%emt 0:07:57]} d4 {[%emt 0:02:47] [#]} 17. f4 $1 {[%emt 0:19:59] Strongly threatening fxe5.} a6 {[%emt 0:05:19]} 18. Nc3 {[%emt 0:00:05]} Kc7 {[%emt 0:00:17]} 19. Ne4 {[%emt 0:00:10]} exf4 {[%emt 0:04:05]} 20. Bxd4 {[%emt 0:02:10]} Rd8 {[%emt 0:17:26]} 21. Bb2 {[%emt 0:05:36]} Rxd1+ {[%emt 0:00:46]} 22. Kxd1 {[%emt 0:00:04]} Nd5 {[%emt 0:05:50]} (22... Bf5 $11 23. Nf6 Rd8+ 24. Kc1 Nd5 (24... Nd4 25. h4 $14)) 23. Kc1 {[%emt 0:02:51]} Bf5 {[%emt 0:06:29]} 24. Bd3 {[%emt 0:00:51]} Rg8 {[%emt 0:12:45]} 25. Nf6 {[%emt 0:07:41]} Nxf6 {[%emt 0:00:05]} 26. Bxf5 {[%emt 0:00:06]} Rg5 {[%emt 0:06:53]} 27. Bd3 {[%emt 0:01:08] This pair of bishops is nice.} ({Much weaker is} 27. Bxf6 Rxf5 28. Bc3 Kd6 $11) 27... Ne5 {[%emt 0:00:40]} 28. h4 {[%emt 0:18:57]} Nxd3+ {[%emt 0:00:07]} 29. cxd3 {[%emt 0:00:03]} Rf5 {[%emt 0:00:12]} 30. Bxf6 {[%emt 0:03:53]} Rxf6 $11 {[%emt 0:00:01][%mdl 4096] Endgame. KR-KR} 31. h5 {[%emt 0:00:05] Hoping for h6.} Rh6 $1 {[%emt 0:00:20]} ({Not} 31... f3 $2 32. gxf3 Rh6 33. Kd2 $18) 32. Kd2 {[%emt 0:04:37]} Kd6 {[%emt 0:00:19]} 33. Ke2 {[%emt 0:02:41] Threatens to win with Kf3.} Ke5 {[%emt 0:00:17]} 34. Kf3 {[%emt 0:02:01]} Rd6 $1 {[%emt 0:04:01]} 35. Rd1 {[%emt 0:00:03][%cal Od3d4]} Rd4 {[%emt 0:02:32]} 36. h6 {[%emt 0:03:50] Black must now prevent h7.} Kf6 {[%emt 0:00:21]} 37. Rh1 {[%emt 0:00:17] And now h7 would win.} Rxd3+ {[%emt 0:00:06]} 38. Kxf4 {[%emt 0:00:22] White threatens h7 and mate.} Rd4+ {[%emt 0:04:51]} (38... Rd8 $1 $11 {keeps the balance.}) 39. Ke3 $16 {[%emt 0:00:04]} Rd8 {[%emt 0:00:04] [#]} 40. Rb1 {[%emt 0:00:34]} ({White should try} 40. h7 $1 $16 {[%cal Rh7h8]} Rh8 41. Kd4) 40... b5 $11 {[%emt 0:01:19] The position is equal.} 41. a4 {[%emt 0:08:20]} Rb8 {[%emt 0:03:47]} 42. axb5 {[%emt 0:02:56]} axb5 {[%emt 0:00:33][%cal Ba6b5,Bb5b4,Bb4b3,Bb3b2][%mdl 32]} 43. Rh1 {[%emt 0:00:54]} b4 {[%emt 0:03:15]} 44. Kd3 {[%emt 0:00:37]} b3 {[%emt 0:01:00]} 45. Kc3 {[%emt 0:00:39]} b2 {[%emt 0:00:15]} 46. Kc2 {[%emt 0:00:04]} Kg6 {[%emt 0:00:13]} 47. h7 {[%emt 0:00:15]} Kg7 {[%emt 0:00:04]} 48. h8=Q+ {[%emt 0:00:27]} Rxh8 {[%emt 0:00:01]} 49. Rxh8 {[%emt 0:00:06]} Kxh8 {[%emt 0:00:01]} 50. Kxb2 {[%emt 0:00:05] KP-KP} Kg7 {[%emt 0:00:01]} 51. Kc3 {[%emt 0:00:09]} Kf6 {[%emt 0:00:01]} 52. Kd4 {[%emt 0:00:09]} Kf5 {[%emt 0:00:02]} 53. Kd5 {[%emt 0:00:34]} Kf4 {[%emt 0:00:35]} 54. Kd6 {[%emt 0:00:05]} Kg3 {[%emt 0:00:08]} 55. Ke7 {[%emt 0:00:11]} f5 {[%emt 0:00:03][%cal Of5f4] ( -> ...f4!)} 56. Kf6 {[%emt 0:00:04]} Kxg2 {[%emt 0:00:02]} 57. Kxf5 {[%emt 0:00:04] Weighted Error Value: White=0.07 (flawless) /Black=0.06 (flawless) .  Mistake:       	White=1     	Black=2      Inaccurate:     	White=2     	---        OK:         	White=17    	Black=22     Best:        	White=3     	Black=6      Strong:       	---       	Black=2} 1/2-1/2

[Event "45th FIDE Olympiad 2024"]
[Site "Budapest"]
[Date "2024.09.18"]
[Round "7.17"]
[White "Muhammed, Shuaau"]
[Black "Gurner, Jem"]
[Result "1-0"]
[WhiteElo "2052"]
[BlackElo "2091"]
[PlyCount "109"]
[EventDate "2024.09.05"]
[EventType "team-tourn"]
[EventCountry "HUN"]
[WhiteTeam "Maldives"]
[BlackTeam "Jersey"]
[WhiteTeamCountry "MDV"]
[TimeControl "40/5400+30:1800+30"]

1. e4 c5 2. Nf3 d6 3. d4 cxd4 4. Nxd4 Nf6 5. Nc3 a6 6. f3 e5 7. Nb3 Be7 8. Be3 Be6 9. Qd2 h5 10. Nd5 Nxd5 11. exd5 Bf5 12. Be2 a5 13. a4 Nd7 14. Bb5 O-O 15. O-O Nf6 16. Rac1 e4 17. f4 Ng4 18. Bd4 Bf6 19. h3 Nh6 20. Bxf6 Qxf6 21. Nxa5 e3 22. Qb4 Qg6 23. Nc4 Bxh3 24. Nxe3 Nf5 25. Bd3 Rfe8 26. Bxf5 Bxf5 27. Nxf5 Qxf5 28. Qxb7 Rxa4 29. c4 Raa8 30. Rf2 Qf6 31. Qb3 Rab8 32. Qc3 Qxc3 33. Rxc3 Re1+ 34. Kh2 Rb1 35. Rcc2 Rb3 36. Rfd2 Rb8 37. c5 dxc5 38. d6 Rd8 39. Rxc5 g6 40. d7 Kf8 41. f5 Rf1 42. fxg6 fxg6 43. b4 Rf6 44. b5 Rb6 45. Kg3 Rb7 46. Rcd5 Ke7 47. Kh4 Kf7 48. Kg5 Kg7 49. g3 Kf7 50. Kf4 Ke7 51. Kg5 Kf7 52. Rf2+ Ke6 53. Rc5 Rbxd7 54. Rf6+ Ke7 55. Re5# 1-0